bitfinex/quotes_BTCUSD_20250623
["timestamp","ask_amount","ask_price","bid_price","bid_amount"]
[1750644031776,5e-05,101360.0,101350.0,0.57705]
[1750644032141,5e-05,101360.0,101350.0,0.53381]
[1750644032991,5e-05,101360.0,101350.0,0.37289]
[1750644033205,0.28979645,101360.0,101350.0,0.53262]
[1750644033412,0.28979645,101360.0,101350.0,0.23432]
[1750644033615,0.28979645,101360.0,101350.0,0.20511]
[1750644033793,0.28979645,101360.0,101350.0,0.01]
[1750644034834,0.30823023,101360.0,101350.0,0.003]
[1750644034992,0.30823023,101360.0,101350.0,0.0409]
[1750644035413,0.01848378,101360.0,101350.0,0.07219]
[1750644035585,0.01848378,101360.0,101350.0,0.06919]
[1750644036373,0.01848378,101360.0,101350.0,0.07119]
[1750644036818,5e-05,101360.0,101350.0,0.07365646]
[1750644037028,5e-05,101360.0,101350.0,0.07119]
[1750644037438,5e-05,101360.0,101350.0,0.36093645]
[1750644038175,5e-05,101360.0,101350.0,0.07119]
[1750644038577,5e-05,101360.0,101350.0,0.13128978]
[1750644038780,5e-05,101360.0,101350.0,0.42103623]
[1750644040386,5e-05,101360.0,101350.0,0.36093645]
[1750644041196,5e-05,101360.0,101350.0,0.07119]
[1750644045452,5e-05,101360.0,101350.0,0.11439]
[1750644047232,5e-05,101360.0,101350.0,0.23211]
[1750644049096,0.00928526,101360.0,101350.0,0.23211]
[1750644049306,0.00928526,101360.0,101350.0,0.53041]
[1750644049493,0.00928526,101360.0,101350.0,0.8766621]
[1750644050358,5e-05,101360.0,101350.0,0.8766621]
[1750644050569,0.10958782,101380.0,101360.0,0.0663]
[1750644050778,0.00046257,101370.0,101360.0,0.36829617]
[1750644050985,0.00046257,101370.0,101360.0,0.36583]
[1750644051177,0.01895285,101370.0,101360.0,0.45407683]
[1750644051786,0.05862873,101370.0,101360.0,0.45407683]
[1750644052205,0.05862873,101370.0,101360.0,0.45607683]
[1750644053399,0.05862873,101370.0,101360.0,0.36783]
[1750644055583,0.0586357,101370.0,101360.0,0.36783]
[1750644057813,0.9953286,101370.0,101360.0,0.3003]
[1750644058034,0.9979186,101370.0,101360.0,0.3003]
[1750644058296,0.70817215,101370.0,101360.0,0.3003]
[1750644058724,0.71510945,101370.0,101360.0,0.3003]
[1750644059151,0.69532176,101370.0,101360.0,0.3003]
[1750644059375,0.69621176,101370.0,101360.0,0.3003]
[1750644060229,0.71341176,101370.0,101360.0,0.3003]
[1750644060673,0.69621176,101370.0,101360.0,0.3003]
[1750644061111,0.68838444,101370.0,101360.0,0.002]
[1750644061340,0.64824599,101370.0,101360.0,0.002]
[1750644061747,0.64824443,101370.0,101360.0,0.002]
[1750644061991,0.687992,101370.0,101360.0,0.002]
[1750644062656,0.69724026,101370.0,101360.0,0.002]
[1750644063094,0.35724026,101370.0,101360.0,0.0333]
[1750644063330,0.35724026,101370.0,101360.0,0.06693]
[1750644063538,0.06749381,101370.0,101360.0,0.06693]
[1750644064392,0.06749381,101370.0,101360.0,0.0657]
[1750644064640,0.06749805,101370.0,101360.0,0.0657]
[1750644065287,0.1012407,101370.0,101360.0,0.0333]
[1750644065504,0.06749805,101370.0,101360.0,0.0333]
[1750644066146,0.06749805,101370.0,101360.0,0.0649]
[1750644067475,0.06750212,101370.0,101360.0,0.0649]
[1750644068131,0.06750212,101370.0,101360.0,0.06613]
[1750644068622,0.06750212,101370.0,101360.0,0.0649]
[1750644068872,0.06750212,101370.0,101360.0,0.06613]
[1750644069631,0.0490018,101370.0,101360.0,0.06613]
[1750644070432,0.03974757,101370.0,101360.0,0.06613]
[1750644070819,0.65942445,101380.0,101360.0,0.06613]
[1750644071046,0.66045314,101380.0,101360.0,0.06613]
[1750644071937,0.66045314,101380.0,101360.0,0.06413]
[1750644073993,0.6996334,101380.0,101360.0,0.06413]
[1750644075128,0.70657323,101380.0,101360.0,0.06413]
[1750644075724,0.28974645,101370.0,101360.0,0.0629]
[1750644076334,0.6996334,101380.0,101370.0,0.033]
[1750644076504,0.70657356,101380.0,101370.0,0.033]
[1750644077504,0.70657356,101380.0,101360.0,0.0645]
[1750644077716,0.28974645,101370.0,101360.0,0.0645]
[1750644077939,0.30825377,101370.0,101360.0,0.0645]
[1750644078153,0.30914377,101370.0,101350.0,0.52144]
[1750644078339,0.30914377,101370.0,101360.0,0.0643]
[1750644079054,0.30914377,101370.0,101360.0,0.0623]
[1750644079316,0.30914377,101370.0,101360.0,0.0315]
[1750644080230,0.30914522,101370.0,101360.0,0.0315]
[1750644080471,0.30914522,101370.0,101350.0,0.06393]
[1750644080710,0.30914522,101370.0,101350.0,0.06193]
[1750644080919,0.30914522,101370.0,101360.0,0.002]
[1750644081765,0.31839862,101370.0,101350.0,0.06193]
[1750644081974,0.31839862,101370.0,101360.0,0.0611]
[1750644082401,0.31839862,101370.0,101360.0,0.0311]
[1750644082630,0.31839862,101370.0,101360.0,0.002]
[1750644082857,0.97398641,101370.0,101360.0,0.002]
[1750644083075,1.2016396,101370.0,101360.0,0.002]
[1750644083295,1.20164755,101370.0,101360.0,0.002]
[1750644083997,0.3572,101360.0,101340.0,0.3594]
[1750644084213,0.28974645,101350.0,101340.0,0.0611]
[1750644084419,0.31751562,101350.0,101340.0,0.0311]
[1750644084650,0.34,101340.0,101320.0,0.43994132]
[1750644084869,0.28974645,101330.0,101320.0,0.44107132]
[1750644085095,0.02776917,101330.0,101320.0,0.43994132]
[1750644085305,0.31751562,101330.0,101320.0,0.43994132]
[1750644085517,0.29900283,101330.0,101320.0,0.43994132]
[1750644085965,0.29899215,101330.0,101320.0,0.44040389]
[1750644086653,0.0092457,101330.0,101320.0,0.44240389]
[1750644086864,0.29899215,101330.0,101320.0,0.44240389]
[1750644087074,0.29899215,101330.0,101320.0,0.44740389]
[1750644087711,0.29899215,101330.0,101320.0,0.15023389]
[1750644088792,0.28974645,101330.0,101320.0,0.15023389]
[1750644089042,0.29898594,101330.0,101320.0,0.15023389]
[1750644090575,0.00923949,101330.0,101320.0,0.48484373]
[1750644090800,0.34,101340.0,101320.0,0.42234373]
[1750644091014,0.65744759,101340.0,101330.0,0.0609]
[1750644091230,0.63898016,101340.0,101330.0,0.0609]
[1750644091668,0.63897764,101340.0,101330.0,0.0609]
[1750644091873,0.6574403,101340.0,101330.0,0.0609]
[1750644092324,0.6574403,101340.0,101330.0,0.0629]
[1750644092752,0.6574403,101340.0,101330.0,0.0639]
[1750644093262,0.96527675,101340.0,101330.0,0.003]
[1750644093481,0.96697675,101340.0,101330.0,0.003]
[1750644093902,0.9969547,101340.0,101330.0,0.003]
[1750644094127,0.9969547,101340.0,101330.0,0.001]
[1750644094580,0.99605602,101340.0,101320.0,0.06296257]
[1750644094793,0.29063645,101330.0,101320.0,0.06296257]
[1750644095016,0.29986484,101330.0,101320.0,0.06296257]
[1750644095228,0.29897484,101330.0,101320.0,0.06296257]
[1750644095442,0.32866284,101330.0,101320.0,0.06296257]
[1750644095659,0.32955284,101330.0,101320.0,0.06296257]
[1750644095892,0.32866284,101330.0,101320.0,0.06296257]
[1750644096324,0.32866284,101330.0,101320.0,0.06416257]
[1750644096536,0.32865927,101330.0,101320.0,0.06416257]
[1750644096770,0.32954927,101330.0,101320.0,0.06416257]
[1750644096979,0.32954927,101330.0,101320.0,0.03096257]
[1750644097418,0.32954927,101330.0,101320.0,0.03296257]
[1750644097844,0.32954927,101330.0,101320.0,0.06616257]
[1750644098063,0.32954927,101330.0,101320.0,0.06716257]
[1750644098278,0.32865927,101330.0,101320.0,0.06716257]
[1750644098498,0.32954927,101330.0,101320.0,0.00346257]
[1750644099638,0.32954927,101330.0,101320.0,0.03546257]
[1750644099885,0.49042927,101330.0,101320.0,0.03546257]
[1750644100098,0.89244927,101330.0,101320.0,0.00346257]
[1750644100315,0.91089058,101330.0,101320.0,0.00346257]
[1750644100536,0.90919058,101330.0,101320.0,0.00346257]
[1750644100721,0.90919058,101330.0,101320.0,0.00146257]
[1750644100983,0.90919058,101330.0,101320.0,0.00046257]
[1750644101211,0.91089058,101330.0,101320.0,0.00046257]
[1750644101430,0.94463323,101330.0,101320.0,0.00046257]
[1750644101639,0.91089058,101330.0,101320.0,0.00046257]
[1750644102746,0.75987844,101330.0,101320.0,0.00046257]
[1750644102970,0.91087197,101330.0,101320.0,0.00046257]
[1750644104067,0.91087183,101330.0,101320.0,0.00046257]
[1750644104291,0.63063645,101320.0,101310.0,0.0001]
[1750644104539,0.67548383,101320.0,101310.0,0.00014624]
[1750644104991,0.67718383,101320.0,101310.0,0.00014624]
[1750644105206,0.67548383,101320.0,101310.0,0.00014624]
[1750644105650,0.67548383,101320.0,101310.0,0.00114624]
[1750644105869,0.3354696,101320.0,101310.0,0.00114624]
[1750644106524,0.3182696,101320.0,101310.0,0.00114624]
[1750644106733,0.3182696,101320.0,101310.0,0.00314624]
[1750644106948,0.02852315,101320.0,101310.0,0.00314624]
[1750644107165,0.3182696,101320.0,101310.0,0.00314624]
[1750644108516,0.2998475,101320.0,101310.0,0.00314624]
[1750644108752,0.31826755,101320.0,101310.0,0.00314624]
[1750644108974,0.33546755,101320.0,101310.0,0.00314624]
[1750644109409,0.31826755,101320.0,101310.0,0.00314624]
[1750644110106,0.0276311,101320.0,101310.0,0.06644624]
[1750644110323,0.50803255,101320.0,101310.0,0.06644624]
[1750644110535,0.5426652,101320.0,101310.0,0.06644624]
[1750644110744,0.50892255,101320.0,101310.0,0.06644624]
[1750644111614,0.51584049,101320.0,101310.0,0.06644624]
[1750644111820,0.55916049,101320.0,101310.0,0.06644624]
[1750644112514,1.2258453,101320.0,101310.0,0.00314624]
[1750644112735,1.25117129,101320.0,101290.0,0.0645]
[1750644112950,0.29063645,101300.0,101290.0,0.0645]
[1750644113162,0.47926755,101300.0,101290.0,0.0645]
[1750644113340,0.48619299,101300.0,101290.0,0.0645]
[1750644113552,0.51589399,101300.0,101290.0,0.0645]
[1750644114393,0.51589399,101300.0,101290.0,0.0715]
[1750644115277,0.55648631,101300.0,101290.0,0.0715]
[1750644115496,0.55648631,101300.0,101290.0,0.0384]
[1750644115721,0.55249178,101300.0,101290.0,0.007]
[1750644115947,0.93819197,101300.0,101280.0,0.05564441]
[1750644116149,0.33302645,101290.0,101280.0,0.0316]
[1750644116432,0.39127865,101290.0,101280.0,0.0316]
[1750644116676,0.39216865,101290.0,101280.0,0.0316]
[1750644117138,0.39217466,101290.0,101280.0,0.0316]
[1750644118300,0.10242821,101290.0,101280.0,0.0316]
[1750644118570,0.39128466,101290.0,101280.0,0.0316]
[1750644118999,0.39128466,101290.0,101280.0,0.0623]
[1750644119418,0.39328466,101290.0,101280.0,0.0623]
[1750644120075,0.39326467,101290.0,101280.0,0.0623]
[1750644120302,0.39326467,101290.0,101280.0,0.06345]
[1750644120938,0.34998467,101290.0,101280.0,0.06345]
[1750644121175,0.24095875,101290.0,101280.0,0.06345]
[1750644121399,0.029675,101290.0,101280.0,0.14259132]
[1750644121643,0.029675,101290.0,101280.0,0.43233777]
[1750644121644,0.01123166,101290.0,101280.0,0.43233777]
[1750644123200,0.00923166,101290.0,101280.0,0.43233777]
[1750644123417,0.00923166,101290.0,101280.0,0.44887862]
[1750644125359,0.34,101310.0,101290.0,0.0622]
[1750644125575,0.34922852,101310.0,101300.0,0.06335]
[1750644126004,0.36768556,101310.0,101300.0,0.06335]
[1750644126656,0.37168556,101310.0,101300.0,0.06335]
[1750644126860,0.36868556,101310.0,101300.0,0.06335]
[1750644127076,0.37168556,101310.0,101300.0,0.06335]
[1750644127990,0.66143201,101310.0,101300.0,0.06335]
[1750644128196,0.66144047,101310.0,101300.0,0.06335]
[1750644128564,0.66044047,101310.0,101300.0,0.06335]
[1750644128762,0.37169402,101310.0,101300.0,0.06335]
[1750644129051,0.66144047,101310.0,101300.0,0.06335]
[1750644130259,0.66144047,101310.0,101300.0,0.0622]
[1750644130688,0.9581159,101310.0,101300.0,0.0307]
[1750644130894,0.95812817,101310.0,101300.0,0.0307]
[1750644131099,1.11912817,101310.0,101290.0,0.0312]
[1750644131312,1.11912817,101310.0,101290.0,0.03]
[1750644131313,0.62974645,101300.0,101290.0,0.03]
[1750644131568,0.62974645,101300.0,101280.0,0.0306]
[1750644131569,0.34,101290.0,101280.0,0.0306]
[1750644131805,0.84989082,101290.0,101280.0,0.0306]
[1750644132016,0.87959465,101290.0,101280.0,0.0306]
[1750644132223,0.8611159,101290.0,101280.0,0.0306]
[1750644132436,0.87959779,101290.0,101280.0,0.0306]
[1750644132854,0.87870779,101290.0,101280.0,0.0306]
[1750644133058,0.8550505,101290.0,101280.0,0.0634]
[1750644133275,0.8550505,101290.0,101280.0,0.0654]
[1750644133697,0.37465126,101290.0,101280.0,0.06662]
[1750644133933,0.02772153,101290.0,101280.0,0.73480777]
[1750644134145,0.65944245,101310.0,101280.0,0.73358777]
[1750644134355,0.71773593,101310.0,101300.0,0.0636]
[1750644135230,0.71873593,101310.0,101300.0,0.0636]
[1750644135730,0.71773593,101310.0,101300.0,0.0636]
[1750644135955,0.71873593,101310.0,101300.0,0.0636]
[1750644136407,0.78525271,101310.0,101300.0,0.0636]
[1750644136617,0.7944912,101310.0,101300.0,0.0636]
[1750644137653,0.77084089,101310.0,101300.0,0.0636]
[1750644138128,0.93192089,101310.0,101300.0,0.0636]
[1750644138341,0.95557321,101310.0,101300.0,0.0636]
[1750644138547,0.93192089,101310.0,101300.0,0.0636]
[1750644138975,0.93192138,101310.0,101300.0,0.0636]
[1750644139384,0.93191951,101310.0,101300.0,0.0636]
[1750644140236,0.93191951,101310.0,101300.0,0.06482]
[1750644140441,0.59191951,101310.0,101300.0,0.06482]
[1750644140859,0.22941896,101310.0,101300.0,0.06482]
[1750644141283,0.03171437,101310.0,101300.0,0.06482]
[1750644141487,0.01323812,101310.0,101300.0,0.06482]
[1750644141692,0.01323812,101310.0,101300.0,0.071302]
[1750644142116,0.01323812,101310.0,101300.0,0.06482]
[1750644142322,0.375738,101310.0,101300.0,0.0636]
[1750644144725,0.01323745,101310.0,101300.0,0.06482]
[1750644144957,0.35323745,101310.0,101300.0,0.06482]
[1750644145678,0.344,101310.0,101300.0,0.06482]
[1750644145927,0.004,101310.0,101300.0,0.06482]
[1750644146174,0.344,101310.0,101300.0,0.06482]
[1750644146643,0.004,101310.0,101300.0,0.06482]
[1750644147595,0.01324004,101310.0,101300.0,0.36312]
[1750644147811,0.004,101310.0,101300.0,0.36984879]
[1750644148220,0.004,101310.0,101300.0,0.36312]
[1750644149052,0.004,101310.0,101300.0,0.06482]
[1750644149992,0.59655255,101330.0,101310.0,0.0323]
[1750644150234,0.63122418,101330.0,101310.0,0.06632]
[1750644150965,0.59744255,101330.0,101310.0,0.06632]
[1750644151116,0.63211025,101330.0,101310.0,0.06632]
[1750644151118,0.36250055,101320.0,101310.0,0.06632]
[1750644151326,0.00924472,101320.0,101310.0,0.06632]
[1750644151530,0.94055255,101330.0,101320.0,0.0633]
[1750644151706,0.97522032,101330.0,101320.0,0.0633]
[1750644151911,1.01584579,101330.0,101320.0,0.0633]
[1750644152530,1.01984579,101330.0,101320.0,0.0633]
[1750644152766,1.01584579,101330.0,101320.0,0.0633]
[1750644153000,1.01184579,101330.0,101320.0,0.0613]
[1750644153243,0.98315379,101330.0,101320.0,0.0613]
[1750644153691,0.98615379,101330.0,101320.0,0.0613]
[1750644153937,0.98615359,101330.0,101320.0,0.0613]
[1750644154168,0.97922024,101330.0,101320.0,0.0613]
[1750644154410,0.98615362,101330.0,101320.0,0.0613]
[1750644154632,0.97922024,101330.0,101320.0,0.0613]
[1750644156039,0.98011024,101330.0,101310.0,0.0316]
[1750644156246,0.36250055,101320.0,101310.0,0.0629]
[1750644156461,0.34,101310.0,101300.0,0.0629]
[1750644156671,0.89147385,101310.0,101300.0,0.0629]
[1750644158430,0.81897308,101310.0,101300.0,0.0629]
[1750644159294,1.10897138,101310.0,101300.0,0.0313]
[1750644159509,1.11086186,101310.0,101300.0,0.0313]
[1750644161147,1.16107502,101310.0,101290.0,0.0633]
[1750644161344,0.62999978,101300.0,101290.0,0.0633]
[1750644161664,0.63924372,101300.0,101290.0,0.0633]
[1750644162418,0.63924372,101300.0,101290.0,0.0643]
[1750644162782,0.65774616,101300.0,101290.0,0.0643]
[1750644164051,0.65774616,101300.0,101290.0,0.0653]
[1750644164591,0.36774638,101300.0,101290.0,0.06649]
[1750644164791,0.65774616,101300.0,101290.0,0.06649]
[1750644166378,0.63924372,101300.0,101290.0,0.06649]
[1750644167438,0.34924394,101300.0,101290.0,0.08105313]
[1750644167648,0.00924394,101300.0,101290.0,0.37105291]
[1750644167859,0.34009124,101310.0,101300.0,0.0624]
[1750644168066,0.34933857,101310.0,101300.0,0.06359]
[1750644169224,0.35033857,101310.0,101300.0,0.06359]
[1750644170704,0.64033925,101310.0,101300.0,0.06359]
[1750644175522,0.64033925,101310.0,101300.0,0.0624]
[1750644175747,0.94883808,101310.0,101300.0,0.0637]
[1750644175978,0.93958985,101310.0,101300.0,0.0637]
[1750644176195,0.94883963,101310.0,101300.0,0.0637]
[1750644176454,0.94972963,101310.0,101300.0,0.0321]
[1750644177134,0.94972963,101310.0,101290.0,0.0656]
[1750644177384,0.62999978,101300.0,101290.0,0.0656]
[1750644177610,0.63924956,101300.0,101290.0,0.0656]
[1750644179001,0.63924956,101300.0,101290.0,0.0666]
[1750644179215,0.63924973,101300.0,101290.0,0.0676]
[1750644179439,0.80084973,101300.0,101290.0,0.0676]
[1750644181899,0.80085076,101300.0,101290.0,0.0676]
[1750644182114,0.79159978,101300.0,101290.0,0.0676]
[1750644182322,0.80085074,101300.0,101290.0,0.0676]
[1750644182496,0.81935639,101300.0,101290.0,0.0676]
[1750644183400,0.80085074,101300.0,101290.0,0.0676]
[1750644183638,0.51085096,101300.0,101290.0,0.0676]
[1750644183846,0.80085074,101300.0,101290.0,0.0676]
[1750644184056,0.81935636,101300.0,101290.0,0.0676]
[1750644184494,0.8193582,101300.0,101290.0,0.0676]
[1750644185570,0.8193582,101300.0,101290.0,0.06879]
[1750644186068,0.6577582,101300.0,101290.0,0.06879]
[1750644186278,0.36775842,101300.0,101290.0,0.06879]
[1750644186496,0.65776188,101300.0,101290.0,0.06879]
[1750644186702,0.3677621,101300.0,101290.0,0.06879]
[1750644186910,0.36777,101300.0,101290.0,0.06879]
[1750644187462,0.34925674,101300.0,101290.0,0.06879]
[1750644189377,0.34925649,101300.0,101290.0,0.06879]
[1750644189593,0.63925627,101300.0,101290.0,0.06879]
[1750644190021,0.65776995,101300.0,101290.0,0.06879]
[1750644190237,0.65777031,101300.0,101290.0,0.06879]
[1750644190864,0.65777031,101300.0,101290.0,0.0676]
[1750644193079,0.65777006,101300.0,101290.0,0.0676]
[1750644193919,0.31777006,101300.0,101290.0,0.074479]
[1750644194138,0.31777006,101300.0,101290.0,0.075609]
[1750644194343,0.3174157,101300.0,101290.0,0.0676]
[1750644195835,0.30851377,101300.0,101290.0,0.0676]
[1750644197651,0.28999978,101300.0,101290.0,0.0676]
[1750644198702,0.28999978,101300.0,101290.0,0.06873]
[1750644200049,0.28999978,101300.0,101290.0,0.0676]
[1750644200542,0.29088978,101300.0,101290.0,0.0676]
[1750644201030,0.28999978,101300.0,101290.0,0.0676]
[1750644203227,0.30851417,101300.0,101290.0,0.0676]
[1750644203634,0.64851417,101300.0,101290.0,0.0676]
[1750644203831,0.64851417,101300.0,101290.0,0.06873]
[1750644204031,0.62999978,101300.0,101290.0,0.06873]
[1750644204233,0.64852635,101300.0,101290.0,0.06873]
[1750644204468,0.65547713,101300.0,101290.0,0.06873]
[1750644204937,0.65547713,101300.0,101290.0,0.0676]
[1750644206266,0.82598497,101300.0,101290.0,0.06873]
[1750644207169,0.82598476,101300.0,101290.0,0.06873]
[1750644208937,0.82599502,101300.0,101290.0,0.06873]
[1750644209878,0.46745819,101300.0,101290.0,0.06873]
[1750644210091,0.48599596,101300.0,101290.0,0.06873]
[1750644210319,0.00926784,101300.0,101290.0,0.36560278]
[1750644210539,0.00109124,101310.0,101300.0,0.06573]
[1750644210755,0.35944881,101340.0,101310.0,0.07914085]
[1750644210756,5e-05,101340.0,101310.0,0.07914085]
[1750644210969,0.00931412,101340.0,101330.0,0.35422978]
[1750644211182,0.00936038,101340.0,101330.0,0.35422978]
[1750644211399,0.00936038,101340.0,101330.0,0.41806289]
[1750644211628,0.00936038,101340.0,101330.0,0.06423]
[1750644212279,9.626e-05,101340.0,101330.0,0.06423]
[1750644213574,9.626e-05,101340.0,101330.0,0.06769705]
[1750644214012,0.42702925,101360.0,101340.0,0.0636]
[1750644214277,0.52888927,101360.0,101340.0,0.07154971]
[1750644214485,0.81888905,101360.0,101340.0,0.07154971]
[1750644214919,0.80042953,101360.0,101340.0,0.07154971]
[1750644215122,0.80042953,101360.0,101350.0,0.0622]
[1750644215330,0.80142953,101360.0,101350.0,0.0622]
[1750644215557,0.80141679,101360.0,101350.0,0.0622]
[1750644216198,0.80041679,101360.0,101350.0,0.06333]
[1750644216402,0.80141679,101360.0,101350.0,0.06333]
[1750644216616,0.80246304,101360.0,101350.0,0.06333]
[1750644217250,0.8024528,101360.0,101350.0,0.06333]
[1750644217462,0.84169901,101360.0,101350.0,0.0622]
[1750644217669,0.84269901,101360.0,101350.0,0.0622]
[1750644219362,0.55269923,101360.0,101350.0,0.0622]
[1750644219575,0.84269901,101360.0,101350.0,0.0622]
[1750644221295,0.84268995,101360.0,101350.0,0.0622]
[1750644221715,0.55269017,101360.0,101350.0,0.0622]
[1750644221977,0.39149017,101360.0,101350.0,0.068533]
[1750644222185,0.39149017,101360.0,101350.0,0.06333]
[1750644222816,0.68048995,101360.0,101350.0,0.06333]
[1750644223037,0.67948995,101360.0,101340.0,0.0643]
[1750644223274,0.29082978,101350.0,101340.0,0.0643]
[1750644223517,0.46122749,101350.0,101340.0,0.0325]
[1750644223938,0.45202978,101350.0,101340.0,0.0325]
[1750644224148,0.46122284,101350.0,101340.0,0.0325]
[1750644224779,0.46322284,101350.0,101340.0,0.0325]
[1750644224993,0.45402978,101350.0,101340.0,0.0325]
[1750644225202,0.46322125,101350.0,101340.0,0.0325]
[1750644226074,0.46239125,101350.0,101340.0,0.0325]
[1750644226277,0.46239125,101350.0,101340.0,0.0628]
[1750644228573,0.17239147,101350.0,101340.0,0.0628]
[1750644229001,0.17239147,101350.0,101340.0,0.064]
[1750644229213,0.01119147,101350.0,101340.0,0.09927998]
[1750644229437,0.01119147,101350.0,101340.0,0.064]
[1750644229690,0.30119125,101350.0,101340.0,0.064]
[1750644229871,0.30118904,101350.0,101340.0,0.064]
[1750644230326,0.30118904,101350.0,101340.0,0.0628]
[1750644230786,0.94105474,101350.0,101330.0,0.0605]
[1750644231017,0.94105474,101350.0,101310.0,0.0304]
[1750644231018,0.34,101330.0,101310.0,0.0304]
[1750644231257,0.79115978,101320.0,101310.0,0.0606]
[1750644231914,0.80035512,101320.0,101310.0,0.0606]
[1750644232333,0.51035534,101320.0,101310.0,0.0648]
[1750644232746,0.51035534,101320.0,101310.0,0.06484626]
[1750644232958,0.51035534,101320.0,101310.0,0.06364626]
[1750644233233,0.8727146,101320.0,101310.0,0.00704626]
[1750644233437,0.89194639,101320.0,101310.0,0.00404626]
[1750644233873,0.89194639,101320.0,101310.0,0.01104626]
[1750644234094,0.89194639,101320.0,101310.0,4.626e-05]
[1750644234313,0.89194666,101320.0,101310.0,0.00204626]
[1750644235439,0.89195366,101320.0,101310.0,0.00304626]
[1750644235651,0.89112366,101320.0,101310.0,0.00304626]
[1750644235865,0.89195366,101320.0,101310.0,0.00304626]
[1750644236286,0.89195956,101320.0,101310.0,0.00304626]
[1750644238429,0.89197078,101320.0,101310.0,0.00304626]
[1750644239056,0.92246733,101320.0,101310.0,0.00304626]
[1750644240370,0.89197078,101320.0,101310.0,0.00304626]
[1750644240788,0.89114078,101320.0,101310.0,0.00304626]
[1750644241657,0.89114078,101320.0,101310.0,0.06844626]
[1750644241869,0.52894152,101320.0,101310.0,0.06964626]
[1750644242780,0.89130078,101320.0,101310.0,0.06964626]
[1750644243179,0.55130078,101320.0,101310.0,0.06964626]
[1750644243860,0.55130218,101320.0,101310.0,0.06964626]
[1750644244355,0.55130216,101320.0,101310.0,0.06964626]
[1750644244981,0.55213216,101320.0,101310.0,0.03634626]
[1750644245203,0.55213216,101320.0,101310.0,0.00304626]
[1750644246046,0.55213216,101320.0,101310.0,4.626e-05]
[1750644246287,0.55313216,101320.0,101310.0,4.626e-05]
[1750644247340,0.55230216,101320.0,101310.0,4.626e-05]
[1750644247565,0.55313216,101320.0,101310.0,4.626e-05]
[1750644248389,0.89313216,101320.0,101310.0,4.626e-05]
[1750644248999,0.90004299,101320.0,101310.0,4.626e-05]
[1750644249445,0.90006342,101320.0,101310.0,4.626e-05]
[1750644249662,1.28699268,101320.0,101300.0,0.031]
[1750644249877,0.34,101300.0,101290.0,0.065]
[1750644250101,0.8728537,101300.0,101290.0,0.065]
[1750644250952,0.8728537,101300.0,101290.0,0.0702]
[1750644251802,0.89128262,101300.0,101290.0,0.0702]
[1750644252015,0.89128262,101300.0,101290.0,0.069]
[1750644252226,0.89130049,101300.0,101290.0,0.069]
[1750644252442,0.81899535,101300.0,101290.0,0.0702]
[1750644252719,0.81899535,101300.0,101290.0,0.0722]
[1750644252901,0.80977494,101300.0,101290.0,0.071]
[1750644253447,0.51972082,101300.0,101290.0,0.071]
[1750644253651,0.80977494,101300.0,101290.0,0.071]
[1750644254279,0.79133412,101300.0,101290.0,0.071]
[1750644254720,0.79133412,101300.0,101290.0,0.07018]
[1750644255046,0.79133412,101300.0,101290.0,0.07]
[1750644255505,0.79133412,101300.0,101290.0,0.066]
[1750644255724,0.79133412,101300.0,101290.0,0.068]
[1750644255725,0.50128,101300.0,101290.0,0.068]
[1750644255929,0.79133412,101300.0,101290.0,0.068]
[1750644256131,0.79133412,101300.0,101290.0,0.06918]
[1750644256350,0.79133412,101300.0,101290.0,0.068]
[1750644256561,0.34,101300.0,101290.0,0.06918]
[1750644256773,0.63005412,101300.0,101290.0,0.06918]
[1750644257391,0.34,101300.0,101290.0,0.06918]
[1750644259924,0.34,101310.0,101290.0,0.08441213]
[1750644260131,0.65371705,101310.0,101300.0,0.06248]
[1750644260965,0.36366293,101310.0,101300.0,0.06248]
[1750644261175,0.65371705,101310.0,101300.0,0.06248]
[1750644261382,0.65471705,101310.0,101300.0,0.06248]
[1750644262027,0.66165754,101310.0,101300.0,0.06248]
[1750644262239,0.39937393,101310.0,101300.0,0.06248]
[1750644262865,0.68942805,101310.0,101300.0,0.06248]
[1750644263700,0.6894279,101310.0,101300.0,0.06248]
[1750644264338,0.68942992,101310.0,101300.0,0.06248]
[1750644265584,0.3993758,101310.0,101300.0,0.06248]
[1750644266008,0.37571287,101310.0,101300.0,0.06248]
[1750644266217,0.36877036,101310.0,101300.0,0.06248]
[1750644267034,0.35025668,101310.0,101300.0,0.06248]
[1750644267241,0.36877002,101310.0,101300.0,0.06248]
[1750644269838,0.35025668,101310.0,101300.0,0.06248]
[1750644270055,0.36876587,101310.0,101300.0,0.06248]
[1750644270699,0.36876587,101310.0,101300.0,0.03158]
[1750644270901,0.36876587,101310.0,101300.0,0.00118]
[1750644272524,0.02876587,101310.0,101300.0,0.00118]
[1750644272751,0.02876517,101310.0,101300.0,0.00118]
[1750644275749,0.0287636,101310.0,101300.0,0.00118]
[1750644276177,0.31881772,101310.0,101300.0,0.00118]
[1750644276620,0.65881772,101310.0,101300.0,0.00118]
[1750644278125,0.65881772,101310.0,101290.0,0.29398]
[1750644278534,0.65881706,101310.0,101290.0,0.29398]
[1750644279255,0.29005412,101300.0,101290.0,0.29398]
[1750644279471,0.29005412,101300.0,101290.0,0.2928]
[1750644279670,0.29930804,101300.0,101290.0,0.2928]
[1750644280536,0.29930804,101300.0,101290.0,0.2938]
[1750644280917,0.29930804,101300.0,101290.0,0.2958]
[1750644281285,0.63005412,101300.0,101290.0,0.2958]
[1750644281488,0.6393087,101300.0,101290.0,0.2958]
[1750644282288,0.63930921,101300.0,101290.0,0.2958]
[1750644282879,0.63930921,101300.0,101290.0,0.003]
[1750644284347,0.65782113,101300.0,101290.0,0.003]
[1750644284971,0.68752113,101300.0,101290.0,0.003]
[1750644286327,0.68752497,101300.0,101290.0,0.003]
[1750644288519,0.39830085,101300.0,101290.0,0.003]
[1750644288725,0.68752497,101300.0,101290.0,0.003]
[1750644288927,0.68835497,101300.0,101290.0,0.003]
[1750644289339,0.34835497,101300.0,101290.0,0.003]
[1750644289544,0.34835289,101300.0,101290.0,0.003]
[1750644289949,0.34835286,101300.0,101290.0,0.003]
[1750644290155,0.34752286,101300.0,101290.0,0.003]
[1750644291375,0.68752183,101300.0,101290.0,0.003]
[1750644291580,0.68752037,101300.0,101290.0,0.003]
[1750644291960,0.68752037,101300.0,101290.0,0.00413]
[1750644292758,0.65975412,101300.0,101290.0,0.00413]